Cogmind - Beta 9.2 @@@ ROGUE MODE // 2019.11.13 @ 20:31:29 Player: GMCrimson Result: Destroyed by X-62 Marksman with Pulse Rifle Performance ------------- Evolutions (3) 1500 Regions Visited (11) 2200 Robots Destroyed (121) 605 Value Destroyed (5172) 5172 Prototype IDs (26) 520 Alien Tech Used (0) 0 Bonus (1972) 1972 TOTAL SCORE: 11969 Bonus ------- High Alert Combat Kills 65 Follower Combat Kills 7 Entered Garrisons 600 Used RIF Installer 1000 Aligned with FarCom 300 Cogmind --------- Core Integrity 0/700 Matter 219/300 Energy 90/160 System Corruption 1% Temperature Cool (23) Movement Treading (205) Ox2 Location -7/Garrison Parts ------- > --- POWER (1) -------- Light Nuclear Core > --- PROPULSION (2) --- Armored Treads Medium Treads > --- UTILITY (6) ------ Improved Heat Sink Advanced Heat Sink Large Storage Unit High-capacity Storage Unit High-capacity Storage Unit Relay Coupler [Grunt] (31) > --- WEAPON (4) ------- Lightning Gun Heavy Laser Flak Gun > --- INVENTORY (26) --- Light Nuclear Core Light Nuclear Core Light Nuclear Core Medium Treads Potential Leg Armored Huge Wheel Improved Heat Sink Relay Coupler [NC] (23) Relay Coupler [NC] (24) Relay Coupler [NC] (26) Relay Coupler [NC] (31) Relay Coupler [NC] (21) Relay Coupler [ARC] (11) Relay Coupler [Swarmer] (32) Relay Coupler [Brawler] (28) Relay Coupler [Duelist] (22) Relay Coupler [Sentry] (24) Relay Coupler [Sentry] (20) Relay Coupler [Specialist] (22) Relay Coupler [Specialist] (20) Relay Coupler [Hunter] (15) Particle Gun Heavy Flail Peak State ------------ > --- POWER ------------ Reinforced Deuterium Engine > --- PROPULSION ------- Potential Leg Potential Leg > --- UTILITY ---------- Large Storage Unit High-capacity Storage Unit High-capacity Storage Unit Improved Heavy Armor Plating Medium Reactive Plating > --- WEAPON ----------- EM Pulse Cannon Light Assault Rifle Assault Cannon Heavy Flail > --- INVENTORY -------- Light Nuclear Core Armored Treads Carbon-fiber Leg Carbon-fiber Leg Carbon-fiber Leg Improved Titanium Leg Advanced Heat Sink Large Storage Unit Large Storage Unit Medium Reactive Plating Relay Coupler [NC] Relay Coupler [NC] Relay Coupler [NC] Relay Coupler [NC] Relay Coupler [NC] Relay Coupler [ARC] Relay Coupler [Swarmer] Relay Coupler [Duelist] Relay Coupler [Sentry] Relay Coupler [Specialist] Relay Coupler [Specialist] [Rating: 57] Favorites ----------- Power Light Nuclear Core Engine Improved Ion Engine Power Core Light Nuclear Core Propulsion Potential Leg Treads Light Treads Leg Potential Leg Wheel Armored Huge Wheel Utility Large Storage Unit Device Advanced Heat Sink Storage Large Storage Unit Hackware Relay Coupler [Grunt] Protection Light Armor Plating Weapon Heavy EM Pulse Gun Energy Gun Heavy EM Pulse Gun Energy Cannon EM Pulse Cannon Ballistic Gun Heavy Assault Rifle Ballistic Cannon Advanced Assault Cannon Launcher Rocket Launcher Impact Weapon Heavy Flail Special Melee Weapon Improved Datajack Build | -11 -10 -9 -9 -9 -8 -8 -8 -8 -8 -7 -7 ------- Run | Scr Mat Mat Min Exi Min Mat Gar Mat Gar Fac Gar Slots Evolved 6 | . . 2 . . . 2 . . . 2 . Power . | . . . . . . . . . . . . Propulsion . | . . . . . . . . . . . . Utility 4 | . . 1 . . . 1 . . . 2 . Weapon 2 | . . 1 . . . 1 . . . . . Parts Attached 139 | 7 9 9 13 5 2 6 22 11 14 21 20 Power 11 | 1 1 1 . 1 . 1 2 . 2 1 1 Engine 5 | 1 1 1 . . . . . . 1 1 . Core 6 | . . . . 1 . 1 2 . 1 . 1 Reactor . | . . . . . . . . . . . . Propulsion 19 | 3 2 . 1 2 . . . . . 8 3 Treads 7 | . 2 . 1 . . . . . . 2 2 Leg 9 | 2 . . . 2 . . . . . 5 . Wheel 3 | 1 . . . . . . . . . 1 1 Hover . | . . . . . . . . . . . . Flight . | . . . . . . . . . . . . Utility 38 | 1 3 3 2 2 . 2 5 6 4 4 6 Device 6 | . . . . . . 1 1 . . 1 3 Storage 12 | 1 2 2 . 2 . . 1 2 . 2 . Processor . | . . . . . . . . . . . . Hackware 5 | . . . . . . . . 2 2 . 1 Protection 15 | . 1 1 2 . . 1 3 2 2 1 2 Artifact . | . . . . . . . . . . . . Weapon 71 | 2 3 5 10 . 2 3 15 5 8 8 10 Energy Gun 34 | 2 3 4 4 . . . 6 1 3 4 7 Energy Cannon 1 | . . . . . . . . . . 1 . Ballistic Gun 20 | . . 1 2 . 1 2 7 2 2 . 3 Ballistic Cannon 4 | . . . . . . . . 1 . 3 . Launcher 7 | . . . 3 . 1 1 1 . 1 . . Special Weapon . | . . . . . . . . . . . . Impact Weapon 3 | . . . 1 . . . 1 . 1 . . Slashing Weapon . | . . . . . . . . . . . . Piercing Weapon . | . . . . . . . . . . . . Special Melee Weapon 2 | . . . . . . . . 1 1 . . Unidentified Prototypes 3 | . . . . 1 . . . . . 2 . Parts Lost 47 | . 1 4 2 . . . 12 . 10 2 16 Power 5 | . . . . . . . 2 . 2 . 1 Propulsion 2 | . . . . . . . . . . 1 1 Utility 10 | . . 1 1 . . . 2 . 1 . 5 Weapon 30 | . 1 3 1 . . . 8 . 7 1 9 Highest Loss Streak 7 | . 1 2 2 . . . 6 . 4 1 7 Average Slot Usage (%) 94 | . 95 99 99 100 100 100 99 99 89 86 88 Engine 4 | . 14 11 11 7 . . . . 1 7 2 Core 4 | . . . . 3 11 9 8 9 6 . 4 Treads 6 | . 17 22 22 14 . . . . . 1 4 Leg 8 | . 10 . . 7 22 18 18 18 18 3 . Wheel 1 | . . . . . . . . . . 4 4 Device 2 | . . . . . . 4 1 . . 5 10 Storage 23 | . 15 21 22 22 22 18 26 27 27 23 23 Protection 8 | . 8 11 10 11 11 13 8 7 5 8 4 Energy Gun 14 | . 27 22 20 22 22 18 7 2 9 8 13 Ballistic Gun 11 | . . 10 10 11 11 18 27 25 5 2 7 Ballistic Cannon 3 | . . . . . . . . 2 9 12 6 Naked Turns . | . . . . . . . . . . . . Heaviest Build 145 | 13 22 51 51 51 50 56 71 71 93 145 137 Greatest Support 60 | 20 40 40 40 60 60 60 60 60 60 60 48 Greatest Overweight (x) 34 | 2 . 1 1 1 . . 1 1 1 4 34 Average Overweight (x) 1 | . . . 1 . . . . 1 . 3 3 Largest Inventory Capacity 26 | 6 8 16 16 16 16 16 22 22 22 26 26 Average Capacity 19 | 5 6 15 16 16 16 16 21 22 22 25 26 Most Carried 26 | 6 8 15 16 16 16 16 22 22 22 26 26 Average Carried 18 | 5 6 11 14 15 15 15 17 21 20 24 23 Final Capacity 26 | 6 8 16 16 16 16 16 22 22 22 26 26 Final Carried 26 | 6 8 14 16 15 16 16 22 22 19 26 24 Class Distribution -------------------- 30% | Hauler-Skirmisher 15% | Tank 13% | Scavenger-Tank 10% | Scavenger-Skirmisher 6% | Mutant 5% | Bothacker-Skirmisher 4% | Hauler-Tank 4% | Hauler-Mutant 3% | Bothacker-Mutant 3% | Skirmisher Dominant Class ---------------- Mutant | -10/Materials Tank | -9/Materials Scavenger-Tank | -9/Mines Scavenger-Tank | -9/Exiles Skirmisher | -8/Mines Scavenger-Skirmisher | -8/Materials Scavenger-Skirmisher | -8/Garrison Bothacker-Skirmisher | -8/Materials Hauler-Skirmisher | -8/Garrison Hauler-Skirmisher | -7/Factory Hauler-Skirmisher | -7/Garrison Resources | -11 -10 -9 -9 -9 -8 -8 -8 -8 -8 -7 -7 ----------- Run | Scr Mat Mat Min Exi Min Mat Gar Mat Gar Fac Gar Matter Collected 3317 | 270 37 174 239 . 107 131 662 261 327 458 651 Remotely . | . . . . . . . . . . . . Salvage Created 4249 | 82 208 444 403 . 226 333 668 227 233 649 776 Parts 221 | 5 14 17 36 . 6 20 33 14 15 28 33 Haulers Intercepted . | . . . . . . . . . . . . Recyclers Shooed 2 | 1 1 . . . . . . . . . . Parts Field Recycled . | . . . . . . . . . . . . Retrieved Matter . | . . . . . . . . . . . . Parts Self-Destructed . | . . . . . . . . . . . . Prevented . | . . . . . . . . . . . . Kills | -11 -10 -9 -9 -9 -8 -8 -8 -8 -8 -7 -7 ------- Run | Scr Mat Mat Min Exi Min Mat Gar Mat Gar Fac Gar Combat Hostiles Destroyed 105 | . 2 10 20 . 3 8 17 6 10 12 17 Guns 62 | . 2 6 8 . 1 3 14 3 5 7 13 Cannons 15 | . . . . . . . . 3 5 3 4 AOE 27 | . . 4 12 . 2 4 3 . . 2 . Classes Destroyed 14 | 2 1 2 3 . 1 . 1 . 1 3 . Worker 4 | 1 . . . . . . . 1 . 2 . Builder 1 | . . . . . . . . . . 1 . Tunneler 1 | . . . 1 . . . . . . . . Recycler 7 | 1 2 . . . 2 1 . . . 1 . Watcher 3 | . . 1 . . . 1 . . . 1 . Swarmer 31 | . . . 13 . . 4 3 2 6 . 3 Grunt 49 | . 2 8 5 . 2 1 9 3 2 5 12 Brawler 3 | . . . . . . . 1 . 1 1 . Duelist 1 | . . . . . . . . . . 1 . Sentry 11 | . . 2 1 . . 1 4 1 . . 2 Hunter 6 | . . . . . 1 2 . . . 3 . Programmer 2 | . . . . . . . . . . 2 . Behemoth 1 | . . . . . . . . . 1 . . Assembled 1 | . . . 1 . . . . . . . . Best Kill Streak 6 | 2 3 3 6 . 3 6 5 3 4 3 3 Combat Bots Only 6 | . 1 3 6 . 2 5 5 3 4 3 3 Max Kills in Single Turn 4 | 1 2 2 3 . 2 4 2 1 1 2 2 Gunslinging 1 | . . . . . . . . . . . 1 Exploded 3 | . . 2 3 . 1 3 2 . . 2 . Melee . | . . . . . . . . . . . . Uniques/NPCs Destroyed . | . . . . . . . . . . . . Combat | -11 -10 -9 -9 -9 -8 -8 -8 -8 -8 -7 -7 -------- Run | Scr Mat Mat Min Exi Min Mat Gar Mat Gar Fac Gar Damage Taken 8771 | . 172 803 386 . 142 254 1267 327 1497 1237 2686 Core 1181 | . 35 85 44 . 29 11 97 58 106 272 444 Absorbed by Shields 75 | . . . . . . . . . 75 . . Core Remaining (%) 74 | 100 86 . . . 60 . . . 50 . . Volleys Fired 252 | 4 9 16 21 . 7 16 59 12 39 31 38 Largest 4 | 2 2 3 3 . 3 4 4 4 4 4 4 Hottest 221 | 80 80 113 120 . 113 133 180 124 179 221 221 Shots Fired 768 | 8 18 47 53 . 17 61 181 43 90 112 138 Gun 598 | 8 18 47 45 . 15 60 174 40 49 43 99 Cannon 151 | . . . . . . . . 3 40 69 39 Launcher 19 | . . . 8 . 2 1 7 . 1 . . Special . | . . . . . . . . . . . . Kinetic 450 | . . 16 13 . 5 30 140 40 62 60 84 Thermal 84 | . . . . . . . 26 . 14 15 29 Explosive 19 | . . . 8 . 2 1 7 . 1 . . Electromagnetic 215 | 8 18 31 32 . 10 30 8 3 13 37 25 Robot Hit Streak 16 | 4 6 13 10 . 4 9 10 16 6 14 14 Robot Miss Streak 9 | 2 1 1 8 . 1 2 8 7 7 7 9 Penetration Max . | . . . . . . . . . . . . Secondary Targets 6 | . . 1 . . . 1 1 . . . 3 Max Gunslinging Chain 1 | . . 1 . . . 1 1 . . . 1 Shots Hit Robots 467 | 4 14 35 27 . 9 38 91 34 50 66 99 Core Hits 243 | 3 6 17 24 . 9 17 41 10 19 39 58 Critical Hits 3 | . . . . . . . . . 1 1 1 Critical Kills 1 | . . . . . . . . . . 1 . Critical Parts Destroyed 2 | . . . . . . . . . 1 . 1 Melee Attacks 36 | . . . 18 . . . 6 9 3 . . Impact 24 | . . . 18 . . . 6 . . . . Slashing . | . . . . . . . . . . . . Piercing . | . . . . . . . . . . . . Sneak Attacks 4 | . . . . . . . . 4 . . . Combat Hostiles . | . . . . . . . . . . . . Follow-up Attacks . | . . . . . . . . . . . . Damage Inflicted 9372 | 49 230 677 968 . 390 753 1596 405 908 1744 1652 Guns 5268 | 49 191 451 446 . 123 497 1183 327 339 467 1195 Cannons 1675 | . . . . . . . . 78 507 700 390 Explosions 2318 | . 39 226 522 . 267 256 304 . 62 577 65 Melee 109 | . . . . . . . 109 . . . . Ramming 2 | . . . . . . . . . . . 2 Kinetic 3893 | . . 105 116 . 9 169 971 374 714 568 867 Thermal 1748 | . 39 226 . . . 76 153 . 96 726 432 Explosive 1335 | . . . 522 . 267 180 304 . 62 . . Electromagnetic 2285 | 49 191 346 330 . 114 328 59 31 36 450 351 Impact 109 | . . . . . . . 109 . . . . Slashing . | . . . . . . . . . . . . Piercing . | . . . . . . . . . . . . Highest Corruption 6 | . . . . . . . . . 6 1 1 Average Corruption 2 | . . . . . . . . . 6 1 1 Corruption Purged . | . . . . . . . . . . . . Effects 33 | . . . . . . . . . 27 1 5 Message Errors 11 | . . . . . . . . . 8 . 3 Matter Fused 6 | . . . . . . . . . 6 . . Heat Flow Errors 3 | . . . . . . . . . 3 . . Energy Discharges 2 | . . . . . . . . . 2 . . Data Loss (minor) 5 | . . . . . . . . . 3 . 2 Misfires 3 | . . . . . . . . . 3 . . Targeting Errors 3 | . . . . . . . . . 2 1 . Overload Shots . | . . . . . . . . . . . . Overflow Damage 249 | . 8 10 42 . 6 18 51 . 8 92 14 Projectiles 10 | . . . . . . . . . 8 2 . Explosions 229 | . 8 10 42 . 6 18 41 . . 90 14 Melee 10 | . . . . . . . 10 . . . . Knockbacks 9 | . . . . . . . . . 3 4 2 Impact . | . . . . . . . . . . . . Kinetic 9 | . . . . . . . . . 3 4 2 Secondary . | . . . . . . . . . . . . Self-Inflicted Damage 468 | . 27 194 94 . . . . . 33 73 47 Shots 12 | . 1 5 3 . . . . . 1 1 1 Rammed 1 | . . . . . . . . . . . 1 Targets Rammed 1 | . . . . . . . . . . . 1 Kicked . | . . . . . . . . . . . . Crushed . | . . . . . . . . . . . . Highest Temperature 557 | 36 102 174 260 . 210 347 515 153 436 557 379 Average Temperature 129 | 20 47 69 68 . 80 141 157 63 129 221 115 Received Heat Transfer 2856 | . 54 279 45 . 9 27 657 54 291 198 1242 Effects 29 | . . . . . . 1 3 . 7 14 4 Shutdowns 6 | . . . . . . . 1 . 1 4 . Energy Bleed 2 | . . . . . . 1 . . 1 . . Interference 9 | . . . . . . . 1 . . 4 4 Matter Decay 3 | . . . . . . . . . . 3 . Short Circuit 1 | . . . . . . . . . 1 . . Damage (minor) 1 | . . . . . . . . . . 1 . Damage (major) 5 | . . . . . . . 1 . 4 . . Damage (core) 2 | . . . . . . . . . . 2 . Siege Activations . | . . . . . . . . . . . . Robots Corrupted 2 | . . . 1 . . 1 . . . . . Combat Hostiles 1 | . . . . . . 1 . . . . . Parts Fried 6 | . . 2 1 . 1 2 . . . . . Impact Corruptions 1 | . . . . . . . 1 . . . . Robots Melted . | . . . . . . . . . . . . Combat Hostiles . | . . . . . . . . . . . . Parts Melted 3 | . . . 1 . . . 1 . . . 1 Heat Transferred 2263 | . 50 250 . . . 150 333 . 222 425 833 Parts Sabotaged . | . . . . . . . . . . . . Parts Stolen . | . . . . . . . . . . . . Parts Stripped . | . . . . . . . . . . . . Power Chain Reactions 8 | . 1 5 . . . 1 . . . . 1 Missiles Intercepted . | . . . . . . . . . . . . Alert | -11 -10 -9 -9 -9 -8 -8 -8 -8 -8 -7 -7 ------- Run | Scr Mat Mat Min Exi Min Mat Gar Mat Gar Fac Gar Peak Influence 649 | 10 140 167 264 . 111 269 649 344 256 209 438 Average Influence 173 | 1 65 66 113 . 90 117 391 199 167 54 314 Maximum Alert Level 2 | . . . 1 . . 1 2 1 1 1 2 Low Security (%) 67 | 100 100 100 86 . 100 68 24 52 77 93 15 Level 1 21 | . . . 13 . . 31 19 47 22 6 54 Level 2 11 | . . . . . . . 55 . . . 30 Level 3 . | . . . . . . . . . . . . Level 4 . | . . . . . . . . . . . . Level 5 . | . . . . . . . . . . . . High Security . | . . . . . . . . . . . . Max Security . | . . . . . . . . . . . . Squads Dispatched 12 | . . 2 . . . 1 . 1 . 8 . Investigation 4 | . . 2 . . . . . 1 . 1 . Extermination 3 | . . . . . . . . . . 3 . Reinforcement 2 | . . . . . . 1 . . . 1 . Assault . | . . . . . . . . . . . . Garrison 3 | . . . . . . . . . . 3 . Intercept . | . . . . . . . . . . . . Construction Impeded 1 | . . . . . . 1 . . . . . Haulers Reinforced . | . . . . . . . . . . . . Stealth | -11 -10 -9 -9 -9 -8 -8 -8 -8 -8 -7 -7 --------- Run | Scr Mat Mat Min Exi Min Mat Gar Mat Gar Fac Gar Distress Signals 5 | . . 1 . . . 2 . 2 . . . Communications Jammed . | . . . . . . . . . . . . Distress Signals . | . . . . . . . . . . . . Times Spotted 162 | . 9 20 23 . 4 13 24 13 15 16 25 Peak Tracking Total 6 | . 4 5 4 . 3 4 5 6 6 3 5 Tactical Retreats 21 | . . 1 1 . 1 . 9 . 2 . 7 Traps | -11 -10 -9 -9 -9 -8 -8 -8 -8 -8 -7 -7 ------- Run | Scr Mat Mat Min Exi Min Mat Gar Mat Gar Fac Gar Traps Triggered 26 | . 1 2 . . . . 10 . 10 . 3 Indirectly . | . . . . . . . . . . . . Trap Hack Attempts . | . . . . . . . . . . . . Triggered . | . . . . . . . . . . . . Disarmed . | . . . . . . . . . . . . Reprogrammed . | . . . . . . . . . . . . Reused . | . . . . . . . . . . . . Traps Extracted . | . . . . . . . . . . . . Installed . | . . . . . . . . . . . . Triggered . | . . . . . . . . . . . . Machines | -11 -10 -9 -9 -9 -8 -8 -8 -8 -8 -7 -7 ---------- Run | Scr Mat Mat Min Exi Min Mat Gar Mat Gar Fac Gar Machines Disabled 17 | . 1 1 1 . . . 5 . 1 7 1 Max in Single Turn 4 | . 1 1 1 . . . 1 . 1 4 1 Garrison Relay 6 | . . . . . . . 4 . 1 . 1 Machines Sabotaged . | . . . . . . . . . . . . Garrisons Compromised . | . . . . . . . . . . . . Overloaded Fab Kills . | . . . . . . . . . . . . Fab Network Shutdowns . | . . . . . . . . . . . . Hacking | -11 -10 -9 -9 -9 -8 -8 -8 -8 -8 -7 -7 --------- Run | Scr Mat Mat Min Exi Min Mat Gar Mat Gar Fac Gar Machines Accessed 30 | . 4 2 . 5 . 7 . 6 . 6 . Terminals 17 | . 4 1 . . . 5 . 3 . 4 . Fabricators . | . . . . . . . . . . . . Repair Stations 2 | . . . . . . . . 1 . 1 . Recycling Units . | . . . . . . . . . . . . Scanalyzers 3 | . . 1 . . . 1 . 1 . . . Garrison Access 3 | . . . . . . 1 . 1 . 1 . Total Hacks 124 | . 14 3 . 49 . 25 . 21 . 12 . Successful 91 | . 6 . . 49 . 14 . 14 . 8 . Failed 33 | . 8 3 . . . 11 . 7 . 4 . Catastrophic 5 | . 1 . . . . 1 . 2 . 1 . Database Lockouts . | . . . . . . . . . . . . Manual 48 | . 14 3 . 2 . 13 . 10 . 6 . Terminals 60 | . 14 2 . . . 21 . 14 . 9 . Fabricators . | . . . . . . . . . . . . Repair Stations 3 | . . . . . . . . 2 . 1 . Recycling Units . | . . . . . . . . . . . . Scanalyzers 6 | . . 1 . . . 2 . 3 . . . Garrison Access 6 | . . . . . . 2 . 2 . 2 . Terminal Hacks 65 | . 2 . . 49 . 6 . 4 . 4 . Record 53 | . . . . 48 . 1 . 2 . 2 . Prototype ID Bank 1 | . . . . . . 1 . . . . . Level Access Points 1 | . 1 . . . . . . . . . . Branch Access Points 2 | . . . . . . 1 . . . 1 . Emergency Access Points 1 | . . . . . . 1 . . . . . Unreport Threat 6 | . 1 . . . . 2 . 2 . 1 . EX-Prototype ID Bank 1 | . . . . 1 . . . . . . . Fabricator Hacks . | . . . . . . . . . . . . Repair Station Hacks 2 | . . . . . . . . 2 . . . Scan Component 1 | . . . . . . . . 1 . . . Repair 1 | . . . . . . . . 1 . . . Recycling Unit Hacks . | . . . . . . . . . . . . Scanalyzer 5 | . . . . . . 2 . 3 . . . Insert Component 3 | . . . . . . 1 . 2 . . . Analyze 2 | . . . . . . 1 . 1 . . . Garrison Access Hacks 5 | . . . . . . 1 . 2 . 2 . Unlock Access 3 | . . . . . . 1 . 1 . 1 . Coupler Status 2 | . . . . . . . . 1 . 1 . Unauthorized Hacks 43 | . 14 2 . . . 13 . 8 . 6 . Terminals 14 | . 4 . . . . 5 . 3 . 2 . Track 2 | . 1 . . . . 1 . . . . . Botnet 12 | . 3 . . . . 4 . 3 . 2 . Fabricators . | . . . . . . . . . . . . Repair Stations . | . . . . . . . . . . . . Recycling Units . | . . . . . . . . . . . . Scanalyzers . | . . . . . . . . . . . . Garrison Access . | . . . . . . . . . . . . Data Cores Recovered . | . . . . . . . . . . . . Used . | . . . . . . . . . . . . Hacking Detections 23 | . 4 2 . . . 7 . 5 . 5 . Full Trace Events 2 | . . . . . . . . 1 . 1 . Feedback Events . | . . . . . . . . . . . . Feedback Blocked . | . . . . . . . . . . . . Robot Schematics Acquired . | . . . . . . . . . . . . Robots Built . | . . . . . . . . . . . . Matter . | . . . . . . . . . . . . Time . | . . . . . . . . . . . . Total Robot Build Rating . | . . . . . . . . . . . . Part Schematics Acquired 2 | . . . . . . 1 . 1 . . . Parts Built . | . . . . . . . . . . . . Matter . | . . . . . . . . . . . . Time . | . . . . . . . . . . . . Total Part Build Rating . | . . . . . . . . . . . . Parts Repaired 1 | . . . . . . . . 1 . . . Time 32 | . . . . . . . . 32 . . . Parts Recycled . | . . . . . . . . . . . . Recycled Matter . | . . . . . . . . . . . . Retrieved Matter . | . . . . . . . . . . . . Retrieved Components . | . . . . . . . . . . . . Parts Scanalyzed 2 | . . . . . . 1 . 1 . . . Part Schematics Acquired 2 | . . . . . . 1 . 1 . . . Parts Damaged . | . . . . . . . . . . . . Bothacking | -11 -10 -9 -9 -9 -8 -8 -8 -8 -8 -7 -7 ------------ Run | Scr Mat Mat Min Exi Min Mat Gar Mat Gar Fac Gar Used RIF Installer 2 | . . . . . . . 1 . 1 . . Robot Detection 1 | . . . . . . . . . 1 . . Robots Hacked 5 | . . . . . . . . 3 2 . . Non-combat 1 | . . . . . . . . 1 . . . Combat 4 | . . . . . . . . 2 2 . . Robot Hacks Applied 8 | . . . . . . . . 6 2 . . parse_system 3 | . . . . . . . . 3 . . . no_distress 1 | . . . . . . . . 1 . . . amplify_resonance 1 | . . . . . . . . . 1 . . formatsys_high 3 | . . . . . . . . 2 1 . . Relay Couplers Released 24 | . . . . . . . 16 . 3 . 5 Machine Destruction 24 | . . . . . . . 16 . 3 . 5 Attached 5 | . . . . . . . . 2 2 . 1 Robots Rewired . | . . . . . . . . . . . . Allies Hacked . | . . . . . . . . . . . . Hacks Repelled . | . . . . . . . . . . . . Allies | -11 -10 -9 -9 -9 -8 -8 -8 -8 -8 -7 -7 -------- Run | Scr Mat Mat Min Exi Min Mat Gar Mat Gar Fac Gar Total Allies 3 | . . . . . . . . 2 1 . . Largest Group 1 | . . . . . . . . 1 1 . . Highest-Rated Group 21 | . . . . . . . . 21 15 . . Highest-Rated Ally 21 | . . . . . . . . 21 15 . . Total Orders . | . . . . . . . . . . . . Ally Attacks 9 | . . . . . . . . 7 2 . . Total Damage 274 | . . . . . . . . 216 58 . . Kills 2 | . . . . . . . . 1 1 . . Allies Corrupted . | . . . . . . . . . . . . Allies Melted . | . . . . . . . . . . . . Intel | -11 -10 -9 -9 -9 -8 -8 -8 -8 -8 -7 -7 ------- Run | Scr Mat Mat Min Exi Min Mat Gar Mat Gar Fac Gar Robot Analysis Total . | . . . . . . . . . . . . Derelict Logs Recovered 2 | . . . 2 . . . . . . . . Drone Launches . | . . . . . . . . . . . . Drone Recoveries . | . . . . . . . . . . . . Exploration | -11 -10 -9 -9 -9 -8 -8 -8 -8 -8 -7 -7 ------------- Run | Scr Mat Mat Min Exi Min Mat Gar Mat Gar Fac Gar Turns Passed 11404 | 135 558 990 934 1215 414 416 1353 956 1121 1840 1472 Spaces Moved 7025 | 98 333 497 437 899 368 326 789 627 725 1134 792 Core 37 | 35 . . . . . . . . . . 2 Treads 1853 | . 207 497 437 434 . . . . . 56 222 Legs 3732 | 63 126 . . 465 368 326 789 627 725 243 . Wheels 1403 | . . . . . . . . . . 835 568 Hover . | . . . . . . . . . . . . Flight . | . . . . . . . . . . . . Fastest Speed 50 | 50 120 160 180 90 90 90 90 130 90 130 130 Average Speed 139 | 107 144 179 180 133 90 90 125 130 128 147 158 Slowest Speed 1750 | 150 160 180 180 180 90 90 130 130 130 250 1750 Overloaded Moves . | . . . . . . . . . . . . Propulsion Burnouts . | . . . . . . . . . . . . Robots Hopped . | . . . . . . . . . . . . Cave-ins Triggered 1 | . . . . . . . . . 1 . . Exploration Rate (%) 46 | 5 39 32 60 92 58 25 75 36 58 18 55 Regions Visited 11 Branch Regions 3 Pre-discovered Areas 1 | . . . . 1 . . . . . . . Known Exits Taken 4 | . 1 . . . . 1 . 1 . 1 . Unknown Exits Taken 5 | 1 . 1 1 1 1 . . . . . . Scrap Searched 1 | . . . 1 . . . . . . . . Spaces Dug . | . . . . . . . . . . . . Terrain Destroyed 209 | . 3 22 63 . 17 9 13 . 17 57 8 Melee . | . . . . . . . . . . . . Projectile 9 | . . . . . . . 1 . . 8 . AOE 200 | . 3 22 63 . 17 9 12 . 17 49 8 Actions | -11 -10 -9 -9 -9 -8 -8 -8 -8 -8 -7 -7 --------- Run | Scr Mat Mat Min Exi Min Mat Gar Mat Gar Fac Gar Total 8089 | 117 395 561 512 914 436 412 1023 737 840 1224 918 Wait 346 | . 16 22 15 . 59 58 65 63 15 . 33 Move 7012 | 97 332 496 436 898 367 325 787 626 723 1133 792 Hop . | . . . . . . . . . . . . Pick Up 133 | 9 14 14 7 5 1 4 24 5 11 21 18 Fast Attach 13 | 3 3 . . . . . . 3 . 3 1 Attach 67 | 3 1 7 4 1 . 2 13 1 13 4 18 Detach . | . . . . . . . . . . . . Swap 59 | 1 5 2 9 4 2 4 9 7 1 14 1 Drop 78 | . 15 4 2 6 . 3 10 11 5 18 4 Fire 252 | 4 9 16 21 . 7 16 59 12 39 31 38 Melee 36 | . . . 18 . . . 6 9 3 . . Ram 1 | . . . . . . . . . . . 1 Kick . | . . . . . . . . . . . . Crush . | . . . . . . . . . . . . Escape Stasis 92 | . . . . . . . 50 . 30 . 12 Rewire . | . . . . . . . . . . . . Trap . | . . . . . . . . . . . . Miscellaneous . | . . . . . . . . . . . . Route ------- -11/Scrapyard -10/Materials (discovered 4 exits: *Mat x3 / [*Min]) -9/Materials (discovered 3 exits: *Mat / [*Min] / [*Sto]) -9/Mines (discovered 3 exits: *Mat x2 / *Exi) -9/Exiles -8/Mines -8/Materials (discovered 2 exits: *Fac / Gar) -8/Garrison (discovered 2 exits: *Mat x2) -8/Materials -8/Garrison (discovered 3 exits: *Fac x3) -7/Factory (discovered 5 exits: [*Fac x2] / Low x2 / Gar) -7/Garrison (discovered 2 exits: [*Fac x2]) History --------- Turn | Location | Event 7 | -11/Scrapyard | Discovered new exit (range 16) 136 | -11/Scrapyard | Entered Materials 305 | -10/Materials | Build established: Mutant 454 | -10/Materials | Discovered new exit (range 15) 578 | -10/Materials | Discovered new exit (range 16) 581 | -10/Materials | Identified exit to Materials 694 | -10/Materials | Entered another Materials area 694 | -9/Materials | Evolved 2 slots: Utility x1, Weapon x1 969 | -9/Materials | Discovered new exit (range 3) 1094 | -9/Materials | Build established: Tank 1371 | -9/Materials | Discovered new exit (range 15) 1552 | -9/Materials | Discovered new exit (range 16) 1684 | -9/Materials | Entered Mines 1686 | -9/Mines | Discovered new exit (range 11) 1740 | -9/Mines | Joined a pair of Derelicts in attacking an 0b10 outpost 1934 | -9/Mines | Learned location of 1 exit from Lower Caves 1959 | -9/Mines | Learned Materials interactive machine intel 2067 | -9/Mines | Excavation squad dispatched 2067 | -9/Mines | A large section of the Mines collapsed 2146 | -9/Mines | Discovered new exit (range 8) 2437 | -9/Mines | Build established: Scavenger-Tank 2552 | -9/Mines | Received a Rocket Launcher from a helpful Derelict 2605 | -9/Mines | Deemed a non-threat by the Exiles lab entrance 2607 | -9/Mines | Discovered new exit (range 5) 2618 | -9/Mines | Entered Exiles 2681 | -9/Exiles | Met 8R-AWN 2723 | -9/Exiles | Met EX-HEX 2800 | -9/Exiles | Met EX-DEC 2869 | -9/Exiles | Met EX-BIN 2914 | -9/Exiles | Aligned with FarCom system 2915 | -9/Exiles | Given EX-Vault access code 3106 | -9/Exiles | Learned location of Zion (-6) 3387 | -9/Exiles | Opened EX-Vault 3400 | -9/Exiles | Found Prototype Leg 3401 | -9/Exiles | Identified Potential Leg 3405 | -9/Exiles | Found Potential Leg 3434 | -9/Exiles | Warned to stay clear of 0b10 Research branches 3557 | -9/Exiles | Discovered new exit (range 14) 3657 | -9/Exiles | Visited The Gauntlet 3699 | -9/Exiles | Build established: Tank 3833 | -9/Exiles | Left Exiles lab with Potential Leg 3833 | -9/Exiles | Entered Mines 4148 | -8/Mines | Build established: Skirmisher 4241 | -8/Mines | Discovered new exit (range 7) 4247 | -8/Mines | Entered Materials 4247 | -8/Materials | Evolved 2 slots: Utility x1, Weapon x1 4248 | -8/Materials | Loaded intel: 19 interactive machine locations 4585 | -8/Materials | Discovered new exit (range 7) 4612 | -8/Materials | Identified exit to Garrison 4663 | -8/Materials | Entered Garrison 4740 | -8/Garrison | Triggered checkpoint 4769 | -8/Garrison | Build established: Scavenger-Skirmisher 4778 | -8/Garrison | Garrison Relay disabled 4928 | -8/Garrison | Lost 4 parts (1p3w) 4992 | -8/Garrison | Lost 6 parts (1p2u3w) 5046 | -8/Garrison | Triggered checkpoint 5063 | -8/Garrison | Triggered checkpoint 5176 | -8/Garrison | Discovered new exit (range 14) 5209 | -8/Garrison | Installed Relay Interface Framework 5252 | -8/Garrison | Triggered checkpoint 5266 | -8/Garrison | Garrison Relay disabled 5470 | -8/Garrison | Discovered new exit (range 9) 5514 | -8/Garrison | Triggered checkpoint 5582 | -8/Garrison | Garrison Relay disabled 5651 | -8/Garrison | Triggered checkpoint 5780 | -8/Garrison | Triggered checkpoint 5879 | -8/Garrison | Garrison Relay disabled 6016 | -8/Garrison | Entered Materials 6247 | -8/Materials | Repaired Shotgun 6881 | -8/Materials | Build established: Bothacker-Skirmisher 6971 | -8/Materials | Identified exit to Garrison 6972 | -8/Materials | Entered Garrison 6972 | -8/Garrison | Accompanied by 1 ally 7006 | -8/Garrison | Triggered checkpoint 7050 | -8/Garrison | Garrison Relay disabled 7136 | -8/Garrison | Triggered checkpoint 7189 | -8/Garrison | Spotted B-75 Beast 7219 | -8/Garrison | Destroyed B-75 Beast 7243 | -8/Garrison | Crushed by falling debris 7274 | -8/Garrison | Lost 4 parts (1p3w) 7356 | -8/Garrison | Triggered checkpoint 7403 | -8/Garrison | Discovered new exit (range 9) 7463 | -8/Garrison | Lost 3 parts (1u2w) 7642 | -8/Garrison | Triggered checkpoint 7686 | -8/Garrison | Discovered new exit (range 12) 7732 | -8/Garrison | Build established: Hauler-Skirmisher 7780 | -8/Garrison | Triggered checkpoint 7867 | -8/Garrison | Lost 3 parts (1p2w) 8028 | -8/Garrison | Discovered new exit (range 15) 8058 | -8/Garrison | Expanded RIF knowledge: Robot Detection 8093 | -8/Garrison | Entered Factory 8093 | -7/Factory | Evolved 2 slots: Utility x2 8661 | -7/Factory | Garrison activated, responded to threat 9113 | -7/Factory | Identified exit to Garrison 9238 | -7/Factory | Discovered new exit (range 16) 9562 | -7/Factory | Discovered new exit (range 15) 9576 | -7/Factory | Identified exit to Lower Caves 9933 | -7/Factory | Entered Garrison 9992 | -7/Garrison | Triggered checkpoint 10012 | -7/Garrison | Garrison Relay disabled 10076 | -7/Garrison | Triggered checkpoint 10446 | -7/Garrison | Triggered checkpoint 10454 | -7/Garrison | Triggered checkpoint 10460 | -7/Garrison | Core integrity fell below 50% 10528 | -7/Garrison | Core integrity fell below 20% 10561 | -7/Garrison | Lost 7 parts (1p1n2u3w) 10702 | -7/Garrison | Lost 3 parts (1u2w) 11055 | -7/Garrison | Discovered new exit (range 13) 11289 | -7/Garrison | Discovered new exit (range 10) 11396 | -7/Garrison | Triggered checkpoint 11405 | -7/Garrison | Destroyed by X-62 Marksman with Pulse Rifle Last Messages --------------- QJKZXWH0BFMYG|HJ>IQC3S System corrupted: Component data lost. Triggered Stasis Trap. A bubble of rippling energy engulfs the area. Field strength at 70. Field strength at 40. Field strength at 10. Stasis field depleted. Triggered Stasis Trap. A bubble of rippling energy engulfs the area. Field strength at 70. Field strength at 40. Field strength at 10. Stasis field depleted. EXIT=FOUND Beams of light sweep through the air. An alarm sounds. Slug penetrates Reinforced Barrier. Particle Gun destroyed. Penetrated by Slug. [Achievement: Achiever] Map ----- +----------------------------------------------------+ | ??????????????# #????????????????????????????# #? | | ??????????????# #????????????????????????????# #? | | ??????????????# #????????????????????????????# #? | | ############### ###########??????????????????# #? | | #??????############# ## | | ## ########## #??????# | | ?# #????????# ######## #??????# | | ?#####????????# #??????# #??????# ######### ## | | ??# ##????????# #??????+ #??????# #???????# #? | | ### "########## #??????# #??????# #???????# #? | | # "= " +??????# #??????# #???????# #? | | ##" "##########= #??????# ######## #???????# #? | | ?#!=! #???????# #??????# =## ## #???????#^ #? | | ?##=###???????# #?????##! ## ## ##??????# #? | | ?# #????????# ####### = ######?# #? | | ##!==########## [ =% ^ #? | | = = *=%= %=%[ ^ #? | | ######################## =## [ ## ###########? | | ?????????????????????### ## % ## #??????????? | | ?????????????????????# "??????????? | | ?????????????????????# "i?????????? | | ?????????????????????# "d?????????? | | ?????????????????????# "??????????? | | ?????????????????????### ## ## #??????????? | | ?????????????########### ## ## #??????????? | | ?????????????# @ #??????????? | | ?????????????# ^ #??????????? | | ?????????????# ######## x #??????????? | | ?????????????# #??????## ## ## ##??????????? | | ?????????????# #???????# #? #? ????????????? | | ??????######## #???????# #??####? ????????????? | | ???# #???????# #?????????????????????? | | ??????######## #???????# #?????????????????????? | | ?????????????# #???????# #?????????????????????? | | ?????????????# ######### #?????????????????????? | | ?????????????# #?????????????????????? | | ?????????????# #?????????????????????? | | ?????????????# ############?????????????????????? | | ?????????????# #????????????????????????????????? | | ?????????????# #????????????????????????????????? | | ?????????????# #????????????????????????????????? | | ?????????????# #????????????????????????????????? | | ?????????????# #????????????????????????????????? | | ?????????????# #????????????????????????????????? | | ?????????????# #????????????????????????????????? | | ?????????????# #????????????????????????????????? | | ?????????????# #????????????????????????????????? | | ????########## #????????????????????????????????? | | ????# #????????????????????????????????? | | ????# #????????????????????????????????? | +----------------------------------------------------+ Best States ------------- Heat Dissipation 67 Energy Generation 18 Energy Capacity 290 Matter Stores 300 Matter Capacity 300 Sight Range 16 Terrain Scan Density 10 Armor Coverage 825 Resistance: KI 30 Evasion (%) 50 Recoil Reduction 2 Item Schematics ----------------- Carbon-fiber Leg | -8/Materials | Scanalyzed Hacking Suite | -8/Materials | Scanalyzed Robot Schematics ------------------ None Fabricated ------------ Nothing Alien Tech Used ----------------- None Achievements -------------- Achiever Assimilation Complete Error 47 Infiltrator Quantum Hacking root@ Challenges ------------ None Game ------ Seed TeslaSensorMediator Manual? 0 Play Time 01:57:22 Cumulative 19.9 hours Start 2019.11.13 @ 18:33:41 End 2019.11.13 @ 20:31:29 Sessions 1 Manual Loads 0 Difficulty Rogue Special Mode None Game No. 18 Rogue 18 Adventurer 0 Explorer 0 Win Type - Total 0 Types 0/0/0/0/0/0/0 Lore% 17 Gallery% 29 Achievement% 26 Wizard Run 0 Options --------- ASCII 0 Keyboard 0 Movement Arrows Keybinds 0 Fullscreen 1 Font 18/SmallcapsGlow Map View 76x50 Tactical HUD 0 Map Filters NONE Filters NONE Steam 1 RUN: 1e5efb60-b694-48f0-beee-5143c2804e23